bitfinex-derivatives/quotes_SOLF0:USTF0_20250424
["timestamp","ask_amount","ask_price","bid_price","bid_amount"]
[1745480919888,13.46479564,147.49,147.48,5.63389]
[1745480920788,6.7808,147.46,147.42,26.8]
[1745480920980,6.68549564,147.45,147.43,6.7819]
[1745480921288,6.7808,147.46,147.43,6.7819]
[1745480921893,6.7814,147.45,147.42,26.8]
[1745480922390,6.7814,147.45,147.4,6.0815]
[1745480922591,6.7814,147.45,147.41,6.7827]
[1745480924286,17.24569681,147.46,147.42,6.7823]
[1745480924492,10.46489681,147.48,147.4,32.8815]
[1745480924693,10.46489681,147.48,147.4,30.8191]
[1745480924894,6.7803,147.47,147.43,6.7817]
[1745480925395,6.7803,147.47,147.44,6.7815]
[1745480926487,6.7803,147.47,147.43,6.7819]
[1745480926693,6.7807,147.46,147.43,6.7819]
[1745480927190,6.7807,147.46,147.42,6.7823]
[1745480927894,6.7813,147.45,147.41,8.8285]
[1745480928286,10.46489681,147.46,147.38,6.7839]
[1745480928490,10.46489681,147.44,147.37,26.8]
[1745480928886,6.7817,147.44,147.4,6.7831]
[1745480929391,6.7813,147.45,147.4,6.7831]
[1745480929693,10.46489681,147.46,147.4,6.7831]
[1745480929885,10.46489681,147.46,147.41,6.7829]
[1745480930696,6.7815,147.45,147.41,6.7829]
[1745480930995,10.46489681,147.46,147.41,6.7829]
[1745480931396,10.46489681,147.46,147.42,6.7821]
[1745480931698,37.26489681,147.48,147.38,12.51419681]
[1745480931895,6.781,147.46,147.38,12.51419681]
[1745480932195,10.46489681,147.46,147.38,2.0493]
[1745480932395,6.7816,147.44,147.38,2.0493]
[1745480932998,6.7813,147.45,147.41,6.7826]
[1745480933399,10.46489681,147.46,147.41,6.7826]
[1745480933595,6.7812,147.45,147.42,6.7825]
[1745480934893,10.46489681,147.46,147.43,6.782]
[1745480935802,37.26489681,147.48,147.38,2.0493]
[1745480935998,10.46489681,147.47,147.38,26.82]
[1745480936199,10.46489681,147.47,147.44,6.7815]
[1745480936596,26.8,147.48,147.44,6.7815]
[1745480937096,6.7805,147.47,147.44,6.7815]
[1745480937403,6.7805,147.47,147.43,6.7819]
[1745480937700,6.7806,147.46,147.43,6.7819]
[1745480941196,6.7812,147.45,147.42,6.7824]
[1745480941700,10.46489681,147.47,147.39,10.46489681]
[1745480943003,6.7814,147.45,147.39,10.46489681]
[1745480943301,13.47955419,147.45,147.41,6.69815419]
[1745480943501,13.47955419,147.45,147.42,6.7824]
[1745480944300,6.69815419,147.43,147.39,6.69815419]
[1745480944503,6.69815419,147.42,147.38,28.8444]
[1745480944706,6.69815419,147.45,147.41,6.69815419]
[1745480945002,13.47915419,147.46,147.42,6.7822]
[1745480945202,6.69815419,147.46,147.42,6.7822]
[1745480945505,13.47905419,147.46,147.42,6.7822]
[1745480945907,13.47905419,147.46,147.43,6.782]
[1745480946205,6.7811,147.45,147.41,6.69815419]
[1745480946404,6.69815419,147.44,147.41,6.7826]
[1745480946606,6.69815419,147.43,147.41,6.7826]
[1745480947905,6.69815419,147.43,147.38,28.8444]
[1745480948103,6.69815419,147.41,147.38,35.54255419]
[1745480948302,6.69815419,147.42,147.38,35.54255419]
[1745480948505,13.48065419,147.42,147.39,6.7836]
[1745480950603,6.69815419,147.41,147.39,6.7836]
[1745480952308,13.48115419,147.41,147.39,6.7836]
[1745480953008,6.69815419,147.41,147.39,6.7836]
[1745480953311,6.69815419,147.41,147.38,33.6042]
[1745480953607,6.7831,147.41,147.38,33.6042]
[1745480954313,13.48165419,147.4,147.36,10.56955419]
[1745480954609,6.69815419,147.4,147.36,10.56955419]
[1745480955812,6.7839,147.39,147.36,17.35455419]
[1745480956712,6.7843,147.38,147.36,17.35455419]
[1745480957107,6.7848,147.37,147.35,6.7857]
[1745480957316,6.69815419,147.37,147.33,6.69815419]
[1745480957614,6.69815419,147.38,147.34,6.69815419]
[1745480957803,6.7851,147.37,147.34,13.48415419]
[1745480959010,13.48265419,147.38,147.35,6.7855]
[1745480959211,6.7845,147.38,147.35,6.7855]
[1745480960215,6.7845,147.38,147.36,6.7852]
[1745480960415,6.7845,147.38,147.34,6.69815419]
[1745480960713,6.7845,147.38,147.35,6.7855]
[1745480962215,13.48215419,147.39,147.36,6.785]
[1745480963617,26.32,147.4,147.35,6.69815419]
[1745480963807,63.14887201,147.46,147.38,6.69815419]
[1745480964012,6.69815419,147.43,147.39,6.69815419]
[1745480964311,6.69815419,147.44,147.39,6.69815419]
[1745480964719,6.69815419,147.44,147.4,6.69815419]
[1745480965015,26.32,147.45,147.42,6.69815419]
[1745480965618,26.32,147.45,147.43,6.7817]
[1745480965915,6.69815419,147.44,147.39,6.69815419]
[1745480966118,6.69815419,147.41,147.37,6.69815419]
[1745480966317,6.69815419,147.41,147.38,6.7841]
[1745480966719,6.69815419,147.4,147.36,10.60425419]
[1745480966912,6.69815419,147.4,147.36,3.9061]
[1745480967313,13.48185419,147.4,147.36,10.6912]
[1745480967618,13.48185419,147.4,147.36,3.9061]
[1745480967818,13.48215419,147.39,147.36,8.688]
[1745480968015,6.69815419,147.39,147.36,8.688]
[1745480968919,6.69815419,147.39,147.36,6.7849]
[1745480969123,6.69815419,147.38,147.36,6.7849]
[1745480969323,6.69815419,147.39,147.36,6.7849]
[1745480970323,13.48215419,147.39,147.36,6.7849]
[1745480970922,6.7844,147.38,147.35,8.7757]
[1745480971225,6.69815419,147.39,147.35,8.7757]
[1745480971416,6.69815419,147.39,147.35,1.9901]
[1745480972225,6.784,147.39,147.36,6.7851]
[1745480974623,6.7845,147.38,147.35,6.7855]
[1745480974926,6.69815419,147.38,147.32,26.32]
[1745480975119,6.69815419,147.38,147.33,6.69815419]
[1745480976227,6.7851,147.37,147.34,6.7859]
[1745480976526,6.69815419,147.38,147.33,6.69815419]
[1745480977222,6.7851,147.37,147.33,6.69815419]
[1745480977727,6.7851,147.37,147.34,6.7861]
[1745480978028,6.7853,147.36,147.33,6.69815419]
[1745480978325,6.7853,147.36,147.32,26.32]
[1745480978326,6.69815419,147.34,147.28,26.06]
[1745480978525,6.69815419,147.34,147.29,6.69815419]
[1745480978922,6.69815419,147.34,147.3,6.7876]
[1745480979127,32.75815419,147.37,147.33,6.69815419]
[1745480979527,6.7855,147.36,147.32,6.69815419]
[1745480979929,32.75815419,147.37,147.32,6.69815419]
[1745480980128,39.54325419,147.37,147.33,6.7866]
[1745480980427,32.8451,147.37,147.33,6.7866]
[1745480980623,26.06,147.37,147.34,13.48415419]
[1745480980828,26.06,147.37,147.34,6.69815419]
[1745480981327,26.06,147.37,147.35,6.7855]
[1745480981826,26.06,147.37,147.36,6.7852]
[1745480982026,32.8435,147.4,147.36,6.69815419]
[1745480982225,32.8435,147.4,147.35,6.69815419]
[1745480982431,32.8435,147.4,147.36,13.48305419]
[1745480983326,32.8435,147.4,147.36,6.7849]
[1745480984029,6.7839,147.39,147.36,6.7849]
[1745480986129,13.48205419,147.39,147.36,6.7849]
[1745480987933,13.48205419,147.39,147.37,6.7848]
[1745480988135,13.48205419,147.39,147.34,6.69815419]
[1745480988432,13.48205419,147.39,147.36,6.7849]
[1745480988833,6.7839,147.39,147.36,6.7849]
[1745480989026,13.48205419,147.39,147.36,6.7849]
[1745480989735,6.7839,147.39,147.36,6.7849]
[1745480989934,13.48205419,147.39,147.37,6.7847]
[1745480990134,13.48205419,147.39,147.34,6.69815419]
[1745480990435,6.69815419,147.39,147.34,6.69815419]
[1745480990633,6.69815419,147.37,147.32,6.69815419]
[1745480991339,6.7852,147.36,147.33,6.7864]
[1745480991833,6.69815419,147.37,147.32,6.69815419]
[1745480992033,13.48315419,147.37,147.32,6.69815419]
[1745480992234,6.69815419,147.37,147.32,6.69815419]
[1745480992636,6.7854,147.36,147.33,6.7864]
[1745480997947,13.48315419,147.37,147.34,6.786]
[1745480998447,13.48345419,147.36,147.33,6.7865]
[1745480999749,13.48345419,147.36,147.34,6.7861]
[1745481000150,6.785,147.37,147.34,6.7861]
[1745481000447,6.69815419,147.39,147.34,6.69815419]
[1745481000845,6.7845,147.38,147.36,6.7852]
[1745481001149,6.69815419,147.38,147.36,6.7852]
[1745481001348,13.48255419,147.38,147.34,6.69815419]
[1745481001551,13.48255419,147.38,147.35,6.7854]
[1745481002051,13.48215419,147.39,147.34,6.69815419]
[1745481002451,13.48215419,147.39,147.36,6.7848]
[1745481003651,39.54165419,147.4,147.35,6.69815419]
[1745481004251,6.7839,147.39,147.36,6.785]
[1745481005051,32.8436,147.4,147.37,6.7847]
[1745481005247,32.75815419,147.4,147.37,6.7847]
[1745481005452,32.75815419,147.4,147.36,6.69815419]
[1745481005453,6.7839,147.39,147.36,13.48315419]
[1745481005753,6.69815419,147.39,147.35,6.69815419]
[1745481006154,6.69815419,147.39,147.36,6.7852]
[1745481007250,13.48225419,147.39,147.36,6.7852]
[1745481008055,13.48225419,147.39,147.35,6.7855]
[1745481008353,13.48225419,147.39,147.35,13.48365419]
[1745481008654,13.48225419,147.39,147.36,6.7851]
[1745481009157,6.69815419,147.39,147.37,6.7846]
[1745481009453,39.54175419,147.4,147.35,6.69815419]
[1745481009757,6.7839,147.39,147.36,6.785]
[1745481010154,32.75815419,147.4,147.35,6.69815419]
[1745481010350,6.7839,147.39,147.36,6.785]
[1745481013753,39.54175419,147.4,147.37,6.7847]
[1745481013956,6.69815419,147.38,147.3,26.06]
[1745481014253,13.48325419,147.37,147.32,6.69815419]
[1745481015057,13.48325419,147.37,147.34,6.786]
[1745481015354,6.7853,147.36,147.32,6.69815419]
[1745481015553,6.69815419,147.35,147.29,1.9888]
[1745481015854,13.48415419,147.35,147.29,8.68695419]
[1745481016057,6.69815419,147.35,147.29,8.68695419]
[1745481016257,6.69815419,147.34,147.3,6.69815419]
[1745481016462,6.69815419,147.33,147.28,10.66755419]
[1745481017051,13.48485419,147.33,147.29,6.7883]
[1745481017356,6.69815419,147.31,147.26,6.69815419]
[1745481018659,13.48565419,147.31,147.27,6.789]
[1745481019158,6.788,147.3,147.26,6.7897]
[1745481019657,6.69815419,147.31,147.25,32.39815419]
[1745481020458,13.48605419,147.31,147.27,6.7892]
[1745481021058,13.48605419,147.31,147.28,6.7889]
[1745481021557,13.48605419,147.31,147.27,6.7892]
[1745481022258,6.7881,147.3,147.27,6.7892]
[1745481023357,6.69815419,147.29,147.24,6.69815419]
[1745481023858,6.69815419,147.3,147.25,6.69815419]
[1745481024559,6.69815419,147.3,147.27,6.7891]
[1745481025558,13.48585419,147.31,147.27,6.7891]
[1745481026059,13.48585419,147.31,147.28,6.7889]
[1745481026250,6.69815419,147.31,147.26,6.69815419]
[1745481026457,25.7,147.34,147.3,6.69815419]
[1745481026756,25.7,147.34,147.31,6.7873]
[1745481028161,32.4862,147.34,147.31,6.7873]
[1745481029263,25.7,147.34,147.31,6.7873]
[1745481030363,32.4865,147.34,147.31,6.7873]
[1745481030663,39.18465419,147.34,147.31,6.7873]
[1745481030865,25.7,147.34,147.3,6.69815419]
[1745481031066,25.7,147.34,147.31,6.69815419]
[1745481031666,32.4862,147.34,147.31,13.48545419]
[1745481033069,32.39815419,147.34,147.3,13.48605419]
[1745481033272,6.69815419,147.33,147.29,6.69815419]
[1745481033770,13.48505419,147.33,147.3,6.788]
[1745481034769,32.4863,147.34,147.31,6.7872]
[1745481034967,32.39815419,147.34,147.29,6.69815419]
[1745481035371,39.18455419,147.34,147.31,6.7874]
[1745481036566,25.7,147.34,147.32,6.787]
[1745481037673,32.4862,147.34,147.3,6.7876]
[1745481037873,32.4862,147.34,147.27,1.9879]
[1745481038072,32.4862,147.34,147.3,6.69815419]
[1745481038273,32.4862,147.34,147.31,6.7872]
[1745481038874,25.7,147.34,147.32,6.7871]
[1745481040670,32.4862,147.34,147.31,6.7873]
[1745481041877,6.7867,147.33,147.3,6.7877]
[1745481042176,13.48485419,147.33,147.3,6.7877]
[1745481042369,6.69815419,147.32,147.28,2.0192]
[1745481042568,6.69815419,147.32,147.29,6.7881]
[1745481042778,6.69815419,147.32,147.28,2.0192]
[1745481044277,6.69815419,147.32,147.3,6.7877]
[1745481045082,6.69815419,147.33,147.31,6.7875]
[1745481045378,32.4863,147.34,147.31,6.7875]
[1745481045580,563.32,147.37,147.32,6.69815419]
[1745481045779,13.48365419,147.36,147.33,6.7866]
[1745481045971,13.48365419,147.36,147.31,6.69815419]
[1745481046175,6.69815419,147.33,147.28,4.1033]
[1745481046483,6.69815419,147.32,147.29,6.7882]
[1745481046979,6.69815419,147.32,147.3,6.7879]
[1745481047173,6.69815419,147.33,147.3,6.7879]
[1745481047378,13.48505419,147.33,147.3,6.7879]
[1745481048381,6.7872,147.32,147.29,6.7883]
[1745481048581,6.7872,147.32,147.28,4.1033]
[1745481048780,32.49815419,147.33,147.28,4.1033]
[1745481049273,32.49815419,147.33,147.29,6.69815419]
[1745481049677,32.49815419,147.33,147.31,6.7875]
[1745481050283,39.28485419,147.33,147.3,6.7878]
[1745481050782,32.49815419,147.33,147.31,6.7875]
[1745481050983,32.49815419,147.33,147.28,10.80145419]
[1745481051983,32.49815419,147.33,147.31,6.7874]
[1745481052685,32.49815419,147.33,147.32,6.7871]
[1745481052891,32.49815419,147.33,147.28,4.1033]
[1745481053085,32.49815419,147.33,147.28,10.80145419]
[1745481053286,32.49815419,147.33,147.31,6.7872]
[1745481055685,39.28485419,147.33,147.3,6.7878]
[1745481056384,39.28485419,147.33,147.31,6.7874]
[1745481056685,39.28485419,147.33,147.28,10.80145419]
[1745481056887,6.7872,147.32,147.28,10.80145419]
[1745481057782,32.49815419,147.33,147.28,10.80145419]
[1745481058290,39.28495419,147.33,147.3,6.7878]
[1745481059484,39.28495419,147.33,147.28,4.1033]
[1745481059485,25.8,147.33,147.28,4.1033]
[1745481059787,6.69815419,147.31,147.25,6.69815419]
[1745481060394,25.8,147.33,147.25,6.69815419]
[1745481060686,6.69815419,147.32,147.25,6.69815419]
[1745481061089,32.49815419,147.33,147.27,6.69815419]
[1745481061287,25.8,147.33,147.27,6.69815419]
[1745481061492,25.8,147.33,147.29,6.69815419]
[1745481061886,32.49815419,147.36,147.31,6.69815419]
[1745481062292,32.49815419,147.36,147.28,5.933]
[1745481062491,39.28375419,147.36,147.3,6.69815419]
[1745481063195,63.49264743,147.37,147.3,6.69815419]
[1745481063387,63.49264743,147.37,147.34,6.69815419]
[1745481063587,63.49264743,147.37,147.36,6.69815419]
[1745481064292,63.49264743,147.37,147.35,6.69815419]
[1745481064695,25.68,147.39,147.37,6.7847]
[1745481064992,32.37815419,147.39,147.34,6.69815419]
[1745481065193,6.69815419,147.38,147.35,6.7854]
[1745481065388,32.37815419,147.39,147.34,6.69815419]
[1745481065691,25.68,147.39,147.37,6.7845]
[1745481067796,39.16025419,147.43,147.31,25.68]
[1745481068093,6.69815419,147.42,147.38,6.69815419]
[1745481068494,6.69815419,147.41,147.37,6.69815419]
[1745481068794,6.69815419,147.42,147.39,6.7836]
[1745481069198,13.48125419,147.41,147.36,8.65465419]
[1745481070295,13.48125419,147.41,147.38,6.7841]
[1745481070492,25.68,147.43,147.37,6.69815419]
[1745481070493,6.69815419,147.42,147.37,6.69815419]
[1745481070691,6.69815419,147.42,147.38,6.69815419]
[1745481070891,6.69815419,147.42,147.39,6.7836]
[1745481071396,6.69815419,147.42,147.38,13.48215419]
[1745481071594,6.69815419,147.42,147.38,6.69815419]
[1745481071795,32.37815419,147.43,147.39,6.69815419]
[1745481072096,25.68,147.43,147.4,6.69815419]
[1745481072298,6.69815419,147.44,147.4,6.69815419]
[1745481072299,13.47955419,147.45,147.4,6.69815419]
[1745481072497,13.47955419,147.45,147.42,6.7825]
[1745481073396,6.69815419,147.44,147.42,6.7825]
[1745481073601,25.68,147.46,147.44,6.7815]
[1745481073798,32.37815419,147.46,147.44,6.7815]
[1745481074302,39.15885419,147.46,147.43,6.7818]
[1745481074704,25.68,147.46,147.43,6.69815419]
[1745481074899,6.69815419,147.47,147.44,6.7813]
[1745481075103,63.49264743,147.49,147.45,6.69815419]
[1745481075303,6.69815419,147.48,147.44,6.69815419]
[1745481075503,6.69815419,147.47,147.44,6.7812]
[1745481075701,6.69815419,147.47,147.43,6.69815419]
[1745481075901,6.69815419,147.47,147.44,6.7813]
[1745481076100,6.69815419,147.47,147.43,6.69815419]
[1745481076302,6.69815419,147.48,147.43,6.69815419]
[1745481076502,6.69815419,147.48,147.44,6.69815419]
[1745481076705,6.69815419,147.47,147.39,25.68]
[1745481076901,6.69815419,147.48,147.44,6.69815419]
[1745481077310,13.47815419,147.48,147.44,13.47955419]
[1745481077906,13.47815419,147.48,147.44,6.7814]
[1745481078107,13.47815419,147.48,147.44,13.47955419]
[1745481079307,6.7802,147.47,147.44,6.7814]
[1745481079608,6.69815419,147.48,147.44,6.7814]
[1745481079907,6.69815419,147.47,147.44,6.7814]
[1745481080104,13.47815419,147.48,147.44,6.7814]
[1745481081105,6.69815419,147.48,147.44,6.7814]
[1745481081402,25.68,147.5,147.44,6.7814]
[1745481081607,6.69815419,147.48,147.45,6.781]
[1745481083210,6.69815419,147.48,147.44,6.69815419]
[1745481083211,25.68,147.5,147.46,6.7805]
[1745481083411,6.69815419,147.48,147.44,6.69815419]
[1745481083807,6.69815419,147.48,147.46,6.7806]
[1745481084112,6.69815419,147.48,147.44,6.69815419]
[1745481084413,32.37815419,147.5,147.46,6.69815419]
[1745481084611,25.68,147.5,147.47,6.69815419]
[1745481084812,25.68,147.5,147.47,13.47805419]
[1745481085513,25.68,147.5,147.48,6.7796]
[1745481085816,25.68,147.5,147.47,6.69815419]
[1745481086017,25.68,147.5,147.43,25.66]
[1745481086217,32.37815419,147.5,147.46,6.69815419]
[1745481086413,6.69815419,147.49,147.45,6.69815419]
[1745481086712,13.47775419,147.49,147.46,6.7805]
[1745481088116,6.69815419,147.49,147.46,6.7805]
[1745481088509,6.69815419,147.49,147.45,6.781]
[1745481088710,39.15725419,147.5,147.45,6.69815419]
[1745481088914,39.15725419,147.5,147.46,6.7804]
[1745481089318,6.7793,147.49,147.46,6.7804]
[1745481089519,32.37815419,147.5,147.46,13.47855419]
[1745481089719,25.68,147.5,147.46,6.69815419]
[1745481089920,13.47635419,147.52,147.48,6.69815419]
[1745481090120,32.35815419,147.53,147.49,13.47705419]
[1745481090315,25.66,147.53,147.44,5.9918]
[1745481090621,6.69815419,147.5,147.46,6.69815419]
[1745481090823,6.69815419,147.51,147.47,13.47825419]
[1745481091121,6.7787,147.51,147.47,13.47825419]
[1745481093121,6.69815419,147.49,147.44,4.0987]
[1745481093316,6.69815419,147.47,147.41,6.69815419]
[1745481093717,6.69815419,147.47,147.43,6.69815419]
[1745481094022,6.69815419,147.47,147.44,6.7815]
[1745481094822,6.69815419,147.47,147.45,6.7811]
[1745481095017,6.69815419,147.47,147.43,6.69815419]
[1745481095424,6.69815419,147.47,147.44,6.7815]
[1745481097326,6.69815419,147.45,147.36,6.69815419]
[1745481097530,6.69815419,147.41,147.36,6.69815419]
[1745481097825,6.69815419,147.41,147.34,25.74]
[1745481098024,6.69815419,147.41,147.36,6.69815419]
[1745481098417,6.69815419,147.42,147.37,6.69815419]
[1745481099124,13.48065419,147.42,147.38,6.784]
[1745481099327,6.69815419,147.4,147.34,25.74]
[1745481099623,6.69815419,147.4,147.36,6.69815419]
[1745481100523,13.48155419,147.4,147.35,6.69815419]
[1745481102222,13.48155419,147.4,147.36,6.7852]
[1745481102724,6.69815419,147.4,147.36,6.7852]
[1745481103928,6.69815419,147.4,147.37,6.7846]
[1745481104928,6.69815419,147.4,147.36,6.7851]
[1745481105118,13.48155419,147.4,147.36,6.7851]
[1745481105320,6.69815419,147.39,147.34,32.43815419]
[1745481105524,6.69815419,147.39,147.35,9.6350787]
[1745481105727,6.69815419,147.39,147.35,6.7854]
[1745481106327,13.48215419,147.39,147.35,6.7854]
[1745481106531,6.69815419,147.38,147.34,39.22415419]
[1745481106720,6.69815419,147.38,147.35,2.84975142]
[1745481106924,6.69815419,147.38,147.33,6.69815419]
[1745481107124,6.69815419,147.38,147.34,9.54959012]
[1745481107325,6.69815419,147.38,147.35,2.85143593]
[1745481107525,6.69815419,147.37,147.32,6.69815419]
[1745481107727,6.69815419,147.37,147.33,2.85272677]
[1745481107927,6.69815419,147.37,147.34,2.85272677]
[1745481108128,6.69815419,147.38,147.34,6.69815419]
[1745481108327,6.69815419,147.39,147.34,6.69815419]
[1745481109129,13.48235419,147.39,147.35,6.7854]
[1745481109330,6.69815419,147.38,147.35,6.7854]
[1745481109827,6.69815419,147.39,147.36,6.7852]
[1745481110725,13.48215419,147.39,147.36,6.7852]
[1745481110931,13.48215419,147.39,147.35,13.48365419]
[1745481111527,6.7844,147.38,147.35,6.69815419]
[1745481111728,6.69815419,147.37,147.31,25.74]
[1745481111930,6.69815419,147.37,147.33,6.69815419]
[1745481112131,6.69815419,147.37,147.34,9.63909191]
[1745481112332,6.69815419,147.37,147.34,6.7862]
[1745481112929,6.7853,147.36,147.33,6.69815419]
[1745481113235,6.69815419,147.37,147.34,2.85282365]
[1745481113534,6.69815419,147.37,147.31,25.74]
[1745481113832,6.69815419,147.36,147.32,9.55042968]
[1745481114025,13.48375419,147.36,147.33,2.85227549]
[1745481114226,6.69815419,147.35,147.31,32.43815419]
[1745481114429,6.69815419,147.35,147.32,2.85236224]
[1745481114629,13.48395419,147.35,147.31,13.48545419]
[1745481114834,6.7858,147.35,147.32,2.85155485]
[1745481115037,6.7858,147.35,147.32,6.7871]
[1745481115333,25.74,147.36,147.34,6.69815419]
[1745481115634,6.69815419,147.38,147.34,13.48405419]
[1745481115935,6.69815419,147.37,147.32,6.69815419]
[1745481116236,6.69815419,147.37,147.33,6.7866]
[1745481116735,6.7853,147.36,147.33,6.7866]
[1745481117132,6.69815419,147.37,147.3,1.9011]
[1745481117337,6.7862,147.34,147.31,2.85003243]
[1745481117638,6.69815419,147.32,147.13,13.5915]
[1745481117836,6.7889,147.28,147.25,6.69815419]
[1745481118036,25.74,147.29,147.25,6.69815419]
[1745481119038,32.5285,147.29,147.25,13.48825419]
[1745481119338,25.74,147.29,147.27,6.69815419]
[1745481120437,6.69815419,147.34,147.27,6.69815419]
[1745481120739,25.76,147.33,147.3,6.69815419]
[1745481121135,32.5469,147.33,147.3,6.69815419]
[1745481121340,25.76,147.33,147.32,6.69815419]
[1745481121540,32.45815419,147.36,147.32,6.69815419]
[1745481122040,6.7858,147.35,147.32,6.69815419]
[1745481122436,32.45815419,147.36,147.32,6.69815419]
[1745481122437,25.76,147.36,147.32,6.69815419]
[1745481122740,537.4,147.37,147.32,6.69815419]
[1745481122936,25.76,147.37,147.32,6.69815419]
[1745481123842,32.45815419,147.37,147.32,6.69815419]
[1745481124347,6.786,147.35,147.32,6.69815419]
[1745481125143,6.786,147.35,147.32,13.48515419]
[1745481126543,6.7854,147.36,147.32,13.48515419]
[1745481127547,6.7854,147.36,147.33,6.7865]
[1745481128147,6.7857,147.35,147.32,13.48515419]
[1745481128348,6.69815419,147.34,147.29,6.69815419]
[1745481128647,6.7866,147.33,147.3,6.7877]
[1745481128851,6.69815419,147.34,147.26,25.76]
[1745481129040,6.69815419,147.32,147.27,9.54159262]
[1745481129239,13.48555419,147.32,147.28,6.7885]
[1745481129749,6.7876,147.31,147.28,6.7885]
[1745481130147,6.7876,147.31,147.27,13.48735419]
[1745481130551,6.69815419,147.3,147.23,32.0868]
[1745481130749,6.69815419,147.3,147.26,6.7898]
[1745481131047,6.7892,147.28,147.24,6.69815419]
[1745481131248,13.48735419,147.28,147.24,6.7906]
[1745481132149,13.48735419,147.28,147.25,6.7902]
[1745481133251,6.7892,147.28,147.25,6.7902]
[1745481133743,32.9286,147.29,147.25,6.7902]
[1745481134052,26.14,147.29,147.25,6.7902]
[1745481134747,10.4917226,147.26,147.18,1.9956]
[1745481134956,26.14,147.25,147.19,2.84648533]
[1745481135148,26.14,147.25,147.2,2.84648533]
[1745481135347,32.9306,147.25,147.21,6.7921]
[1745481135842,26.14,147.25,147.21,6.7921]
[1745481136052,6.7908,147.24,147.2,6.7925]
[1745481136253,26.14,147.25,147.2,6.7925]
[1745481136849,6.7917,147.22,147.19,6.7929]
[1745481137154,10.4917226,147.24,147.19,6.7929]
[1745481137352,10.4917226,147.24,147.17,3.9699]
[1745481137550,10.4917226,147.24,147.18,2.84466712]
[1745481137751,26.14,147.25,147.17,14.4616226]
[1745481138051,26.14,147.25,147.18,2.84464289]
[1745481138251,26.14,147.25,147.2,6.7923]
[1745481139353,6.7911,147.24,147.21,6.792]
[1745481139655,26.14,147.25,147.17,14.4616226]
[1745481139855,26.14,147.25,147.22,6.7914]
[1745481141152,26.14,147.25,147.23,6.7912]
[1745481141552,26.14,147.25,147.19,10.4917226]
[1745481141756,26.14,147.25,147.21,10.4917226]
[1745481141954,32.949,147.28,147.24,6.7905]
[1745481142257,26.16,147.28,147.21,10.4917226]
[1745481142451,26.16,147.28,147.25,6.79]
[1745481143254,26.16,147.28,147.26,6.7896]
[1745481143455,6.7881,147.3,147.26,6.7896]
[1745481144351,6.7885,147.29,147.26,6.7896]
[1745481144751,6.7891,147.28,147.22,26.16]
[1745481144952,6.7891,147.28,147.23,2.84487745]
[1745481145251,6.7891,147.28,147.22,26.16]
[1745481145452,6.7891,147.28,147.24,6.7905]
[1745481145750,6.7886,147.29,147.22,26.16]
[1745481146054,6.7886,147.29,147.25,6.79]
[1745481146757,6.7889,147.28,147.25,6.79]
[1745481147558,6.7895,147.27,147.24,6.7906]
[1745481148557,6.7891,147.28,147.25,6.7902]
[1745481149156,6.7895,147.27,147.24,6.7905]
[1745481149360,26.16,147.27,147.19,40.6534226]
[1745481149557,26.16,147.27,147.2,2.84722472]
[1745481149753,26.16,147.27,147.21,9.63902472]
[1745481149954,26.16,147.27,147.19,40.6534226]
[1745481150155,26.16,147.27,147.2,2.84762632]
[1745481150356,26.16,147.27,147.22,6.7916]
[1745481150755,26.16,147.27,147.19,40.6534226]
[1745481150956,6.7906,147.25,147.2,2.84769036]
[1745481151158,6.7906,147.25,147.21,2.84769352]
[1745481151361,6.7903,147.25,147.22,6.7914]
[1745481151861,6.79,147.26,147.23,6.7912]
[1745481152363,26.16,147.27,147.19,40.6534226]
[1745481152557,6.7904,147.25,147.2,2.84833677]
[1745481152760,6.7904,147.25,147.21,2.84833677]
[1745481153060,6.7904,147.25,147.22,6.7913]
[1745481153958,26.16,147.27,147.19,26.16]
[1745481154160,10.4917226,147.26,147.16,393.6517226]
[1745481154360,10.4917226,147.26,147.17,2.84841677]
[1745481154560,6.792,147.22,147.19,6.7928]
[1745481155565,6.7922,147.21,147.18,6.7934]
[1745481155862,6.7922,147.21,147.19,2.84904877]
[1745481156063,32.9514,147.23,147.19,6.7931]